[Event "Polish Youth 1st League 2022"]
[Site "Lublin"]
[Date "2022.06.26"]
[Round "2.5"]
[White "Krzyzosiak, Marta"]
[Black "Starosta, Martyna"]
[Result "0-1"]
[ECO "A45"]
[WhiteElo "1666"]
[BlackElo "1918"]
[Annotator "RC"]
[PlyCount "136"]
[EventDate "2022.06.24"]
[EventType "team-tourn"]
[EventCountry "POL"]
[SourceTitle "playchess.com"]
[Source "ChessBase"]
[SourceQuality "1"]
[TimeControl "40/5400+30:1800+30"]

1. d4 {[%emt 0:00:04]} Nf6 {[%emt 0:00:05]} 2. Nc3 {[%emt 0:00:09]} d5 {[%emt 0:00:07]} 3. Bf4 {[%emt 0:00:10]} c5 {[%emt 0:00:41]} 4. e3 {[%emt 0:00:30]} a6 {[%emt 0:00:05]} 5. dxc5 {[%emt 0:01:16]} Nc6 {[%emt 0:08:04]} 6. Nf3 {[%emt 0:04:18]} Bg4 {[%emt 0:03:11]} 7. Be2 {[%emt 0:07:58]} e6 {[%emt 0:02:02]} 8. Na4 {[%emt 0:05:19]} Ne4 {[%emt 0:17:20]} 9. c3 {[%emt 0:18:12]} Nxc5 {[%emt 0:02:35]} 10. Nxc5 {[%emt 0:00:23]} Bxc5 {[%emt 0:00:07]} 11. Nd4 {[%emt 0:12:47]} Bxe2 {[%emt 0:01:19]} 12. Qxe2 {[%emt 0:01:59]} Bxd4 {[%emt 0:02:42]} 13. exd4 {[%emt 0:01:20]} O-O {[%emt 0:00:13]} 14. O-O {[%emt 0:00:47]} Qd7 {[%emt 0:00:45]} 15. Qg4 {[%emt 0:02:25]} Ne7 {[%emt 0:01:17]} 16. Rae1 {[%emt 0:08:12]} b5 {[%emt 0:03:54]} 17. Bg5 {[%emt 0:05:24]} Nf5 {[%emt 0:01:24]} 18. Qh3 {[%emt 0:06:50]} a5 {[%emt 0:01:26]} 19. a3 {[%emt 0:04:49]} b4 {[%emt 0:15:19]} 20. axb4 {[%emt 0:02:37]} axb4 {[%emt 0:00:06]} 21. Ra1 {[%emt 0:02:12]} bxc3 {[%emt 0:04:10]} 22. bxc3 {[%emt 0:00:30]} Nd6 {[%emt 0:00:10]} 23. Qd3 {[%emt 0:05:45]} Ne4 {[%emt 0:01:19]} 24. Bd2 {[%emt 0:01:07]} Qc6 {[%emt 0:00:47]} 25. f3 {[%emt 0:02:53]} Nd6 {[%emt 0:01:00]} 26. Rfb1 Rfc8 {[%emt 0:01:06]} 27. h3 {[%emt 0:02:30]} Nc4 {[%emt 0:00:40]} 28. Rxa8 {[%emt 0:01:33]} Qxa8 {[%emt 0:00:20]} 29. Bf4 {[%emt 0:00:53]} h6 {[%emt 0:01:52]} 30. Kh2 {[%emt 0:00:47]} Qc6 {[%emt 0:02:23]} 31. Rb3 {[%emt 0:01:01]} Nd6 {[%emt 0:10:03]} 32. Bxd6 {[%emt 0:00:33]} Qxd6+ {[%emt 0:00:05]} 33. Kg1 {[%emt 0:00:03]} Qf4 {[%emt 0:00:39]} 34. Rb1 {[%emt 0:00:34]} g6 {[%emt 0:00:14]} 35. Kh1 {[%emt 0:00:32]} Kg7 {[%emt 0:00:51]} 36. Rd1 {[%emt 0:00:37]} Ra8 {[%emt 0:01:26]} 37. Qc2 {[%emt 0:01:02]} Qe3 {[%emt 0:00:36]} 38. Qc1 {[%emt 0:00:28]} Qe2 {[%emt 0:00:23]} 39. Re1 {[%emt 0:00:14]} Qc4 {[%emt 0:00:35]} 40. Qe3 {[%emt 0:00:00]} Ra3 {[%emt 0:00:00]} 41. Qe5+ {[%emt 0:09:30]} Kh7 {[%emt 0:07:33]} 42. Rb1 {[%emt 0:03:52]} Ra2 {[%emt 0:05:35]} 43. Qf4 {[%emt 0:01:58]} Ra7 {[%emt 0:02:13]} 44. Qe3 {[%emt 0:07:29]} Qc7 {[%emt 0:00:50]} 45. Rc1 {[%emt 0:03:46]} Ra2 {[%emt 0:00:28]} 46. Qe5 {[%emt 0:01:53]} Qxe5 {[%emt 0:01:18]} 47. dxe5 {[%emt 0:00:06]} Ra4 {[%emt 0:00:14]} 48. Kg1 {[%emt 0:00:37]} Rc4 {[%emt 0:01:18]} 49. Kf2 {[%emt 0:00:16]} d4 {[%emt 0:16:19]} 50. Ke2 {[%emt 0:00:46]} dxc3 {[%emt 0:06:10]} 51. Kd3 {[%emt 0:00:07]} Rc5 {[%emt 0:00:04]} 52. Rxc3 {[%emt 0:03:38]} Rxe5 {[%emt 0:00:09]} 53. Rc1 {[%emt 0:00:55]} g5 {[%emt 0:01:40]} 54. Rc4 {[%emt 0:01:39]} Re1 {[%emt 0:01:02]} 55. h4 {[%emt 0:00:56]} Kg6 {[%emt 0:01:08]} 56. hxg5 {[%emt 0:01:05]} hxg5 {[%emt 0:00:21]} 57. g4 {[%emt 0:00:52]} Kf6 {[%emt 0:01:02]} 58. f4 {[%emt 0:00:27]} Rg1 {[%emt 0:01:11]} 59. f5 {[%emt 0:00:33]} exf5 {[%emt 0:01:18]} 60. Rc6+ {[%emt 0:00:08]} Ke5 {[%emt 0:04:27]} 61. Rc5+ {[%emt 0:00:06]} Kf4 {[%emt 0:00:06]} 62. gxf5 {[%emt 0:00:34]} Re1 {[%emt 0:00:39]} 63. f6 {[%emt 0:01:01]} Re6 {[%emt 0:00:27]} 64. Rc1 {[%emt 0:00:50]} g4 {[%emt 0:01:00]} 65. Rf1+ {[%emt 0:00:14]} Kg5 {[%emt 0:01:42]} 66. Rf2 {[%emt 0:00:24]} Rxf6 {[%emt 0:00:16]} 67. Rxf6 {[%emt 0:00:16]} Kxf6 {[%emt 0:00:05]} 68. Ke3 {[%emt 0:00:08]} Kg5 {[%emt 0:00:05]} 0-1

[Event "Polish Youth 1st League 2022"]
[Site "Lublin"]
[Date "2022.06.26"]
[Round "2.6"]
[White "Kulczycka, Zofia"]
[Black "Wieczorek, Maja"]
[Result "1/2-1/2"]
[ECO "C80"]
[WhiteElo "1564"]
[BlackElo "1316"]
[Annotator "NA RC"]
[PlyCount "62"]
[EventDate "2022.06.24"]
[EventType "team-tourn"]
[EventCountry "POL"]
[SourceTitle "playchess.com"]
[Source "ChessBase"]
[SourceQuality "1"]
[TimeControl "40/5400+30:1800+30"]

1. e4 {[%emt 0:00:03]} e5 {[%emt 0:00:06]} 2. Nf3 {[%emt 0:00:07]} Nc6 {[%emt 0:00:06]} 3. Bb5 {[%emt 0:00:10]} a6 {[%emt 0:00:38]} 4. Ba4 {[%emt 0:00:08]} Nf6 {[%emt 0:00:12]} 5. O-O {[%emt 0:01:46]} Nxe4 {[%emt 0:00:58]} 6. d4 {[%emt 0:02:16]} exd4 {[%emt 0:03:27]} 7. Re1 {[%emt 0:04:02]} d5 {[%emt 0:02:07]} 8. Nxd4 {[%emt 0:02:59]} Bd6 {[%emt 0:03:27]} 9. Nxc6 {[%emt 0:06:00]} Bxh2+ {[%emt 0:01:41]} 10. Kh1 {[%emt 0:06:15]} Qh4 {[%emt 0:03:37]} 11. Rxe4+ {[%emt 0:10:14]} dxe4 {[%emt 0:00:22]} 12. Qd8+ {[%emt 0:00:24]} Qxd8 {[%emt 0:00:04]} 13. Nxd8+ {[%emt 0:00:07]} Kxd8 {[%emt 0:00:05]} 14. Kxh2 {[%emt 0:00:07]} Be6 {[%emt 0:00:33]} 15. Nc3 {[%emt 0:01:58]} c5 {[%emt 0:01:17]} 16. a3 {[%emt 0:19:42]} c4 {[%emt 0:01:41]} 17. Nxe4 {[%emt 0:06:00]} b5 {[%emt 0:00:49]} 18. Bxb5 {[%emt 0:00:54]} axb5 {[%emt 0:00:06]} 19. Bf4 {[%emt 0:02:15]} f6 {[%emt 0:18:56]} 20. Rd1+ {[%emt 0:01:02]} Ke7 {[%emt 0:00:41]} 21. Bd6+ {[%emt 0:01:22]} Kf7 {[%emt 0:00:45]} 22. Bb4 {[%emt 0:01:16]} Rhd8 {[%emt 0:05:25]} 23. Nd6+ {[%emt 0:00:34]} Kg6 {[%emt 0:01:04]} 24. Re1 {[%emt 0:01:30]} Bf5 {[%emt 0:01:36]} 25. Re3 {[%emt 0:04:15]} Rxd6 {[%emt 0:34:04]} 26. Bxd6 {[%emt 0:00:30]} Bxc2 {[%emt 0:00:29]} 27. Re7 {[%emt 0:01:45]} Rd8 {[%emt 0:00:45]} 28. Bb4 {[%emt 0:00:25]} Ba4 {[%emt 0:01:33]} 29. Kg3 {[%emt 0:06:30]} Rd5 {[%emt 0:05:04]} 30. Rb7 {[%emt 0:03:04]} Rg5+ {[%emt 0:02:31]} 31. Kh2 {[%emt 0:00:55]} Rh5+ {[%emt 0:01:12]} 1/2-1/2

[Event "Polish Youth 1st League 2022"]
[Site "Lublin"]
[Date "2022.06.26"]
[Round "2.7"]
[White "Wojdak, Jan"]
[Black "Panek, Bartosz"]
[Result "1-0"]
[ECO "B13"]
[WhiteElo "2144"]
[BlackElo "2022"]
[Annotator "RC"]
[PlyCount "143"]
[EventDate "2022.06.24"]
[EventType "team-tourn"]
[EventCountry "POL"]
[SourceTitle "playchess.com"]
[Source "ChessBase"]
[SourceQuality "1"]
[TimeControl "40/5400+30:1800+30"]

1. e4 {[%emt 0:00:03]} c6 {[%emt 0:00:22]} 2. d4 {[%emt 0:00:05]} d5 {[%emt 0:00:08]} 3. exd5 {[%emt 0:00:05]} cxd5 {[%emt 0:00:04]} 4. Bd3 {[%emt 0:00:04]} Nc6 {[%emt 0:01:09]} 5. c3 {[%emt 0:00:06]} g6 {[%emt 0:00:05]} 6. Bf4 {[%emt 0:00:13]} Bg7 {[%emt 0:03:44]} 7. h3 {[%emt 0:00:10]} e5 {[%emt 0:11:44]} 8. dxe5 {[%emt 0:00:56]} Nxe5 {[%emt 0:00:33]} 9. Be2 {[%emt 0:12:23]} Ne7 {[%emt 0:02:07]} 10. Nd2 {[%emt 0:01:01]} N5c6 {[%emt 0:01:21]} 11. Qb3 {[%emt 0:15:04]} O-O {[%emt 0:14:14]} 12. Ngf3 {[%emt 0:03:33]} Nf5 {[%emt 0:03:34]} 13. O-O {[%emt 0:05:06]} d4 {[%emt 0:04:46]} 14. c4 {[%emt 0:06:43]} h6 {[%emt 0:08:22]} 15. Bd3 {[%emt 0:05:12]} g5 {[%emt 0:09:46]} 16. Bh2 {[%emt 0:00:35]} h5 {[%emt 0:01:26]} 17. Qb5 {[%emt 0:08:44]} a6 {[%emt 0:22:46]} 18. Qc5 {[%emt 0:01:01]} g4 {[%emt 0:08:07]} 19. Bxf5 {[%emt 0:01:33]} gxf3 {[%emt 0:00:06]} 20. Nxf3 {[%emt 0:00:59]} Qa5 {[%emt 0:01:15]} 21. Qxa5 {[%emt 0:01:04]} Nxa5 {[%emt 0:00:05]} 22. Bd3 {[%emt 0:00:23]} Be6 {[%emt 0:00:07]} 23. b3 {[%emt 0:02:29]} Nc6 {[%emt 0:00:05]} 24. Rad1 {[%emt 0:02:19]} a5 {[%emt 0:00:26]} 25. a3 {[%emt 0:09:32]} Rac8 {[%emt 0:01:38]} 26. Rfe1 {[%emt 0:00:54]} Bf6 {[%emt 0:01:18]} 27. Ne5 {[%emt 0:03:43]} Kg7 {[%emt 0:00:12]} 28. Ng6 {[%emt 0:08:02]} fxg6 {[%emt 0:03:37]} 29. Rxe6 {[%emt 0:00:03]} Rfe8 {[%emt 0:00:28]} 30. Rde1 {[%emt 0:01:55]} Rxe6 {[%emt 0:00:04]} 31. Rxe6 {[%emt 0:00:03]} Kf7 {[%emt 0:00:07]} 32. Re1 {[%emt 0:03:52]} Rd8 {[%emt 0:00:44]} 33. Bf4 {[%emt 0:01:02]} g5 {[%emt 0:00:59]} 34. Bc1 {[%emt 0:02:22]} a4 {[%emt 0:01:29]} 35. b4 {[%emt 0:01:09]} Ne5 {[%emt 0:00:04]} 36. Bf1 {[%emt 0:02:01]} d3 {[%emt 0:00:43]} 37. Rd1 {[%emt 0:00:04]} Ke6 {[%emt 0:00:37]} 38. c5 {[%emt 0:01:20]} Kf5 {[%emt 0:00:34]} 39. f3 {[%emt 0:01:51]} Ke6 {[%emt 0:00:09]} 40. Kf2 {[%emt 0:00:00]} Ke7 {[%emt 0:00:00]} 41. g3 {[%emt 0:07:55]} Rd4 {[%emt 0:09:08]} 42. f4 {[%emt 0:10:10]} gxf4 {[%emt 0:00:42]} 43. gxf4 {[%emt 0:00:09]} d2 {[%emt 0:01:23]} 44. fxe5 {[%emt 0:06:31]} Bh4+ {[%emt 0:00:44]} 45. Kf3 {[%emt 0:03:30]} dxc1=Q {[%emt 0:02:39]} 46. Rxc1 {[%emt 0:00:03]} Bg5 {[%emt 0:03:47]} 47. Rc3 {[%emt 0:03:00]} Bd2 {[%emt 0:00:56]} 48. Rc2 {[%emt 0:00:18]} Rf4+ {[%emt 0:02:52]} 49. Ke2 {[%emt 0:00:19]} Bxb4 {[%emt 0:00:05]} 50. axb4 Rxb4 {[%emt 0:00:03]} 51. Ke3 {[%emt 0:03:16]} Ke6 {[%emt 0:00:44]} 52. Bc4+ {[%emt 0:00:43]} Kxe5 {[%emt 0:00:06]} 53. Kd3 {[%emt 0:00:07]} Rb1 {[%emt 0:02:21]} 54. Re2+ {[%emt 0:00:48]} Kf5 {[%emt 0:00:06]} 55. Ra2 {[%emt 0:00:06]} b5 56. Bf7 {[%emt 0:01:16]} Rd1+ {[%emt 0:04:24]} 57. Kc3 {[%emt 0:00:21]} Rc1+ {[%emt 0:01:49]} 58. Kb4 {[%emt 0:00:13]} Rb1+ {[%emt 0:00:10]} 59. Ka5 {[%emt 0:00:08]} Kf6 {[%emt 0:02:41]} 60. Be8 {[%emt 0:01:01]} b4 {[%emt 0:00:53]} 61. Bxa4 {[%emt 0:00:27]} b3 {[%emt 0:00:04]} 62. Rf2+ {[%emt 0:00:54]} Ke5 {[%emt 0:00:10]} 63. Kb4 {[%emt 0:01:09]} b2 {[%emt 0:00:10]} 64. c6 {[%emt 0:01:22]} Kd6 {[%emt 0:00:13]} 65. Rd2+ {[%emt 0:00:25]} Kc7 {[%emt 0:00:15]} 66. Kb3 {[%emt 0:00:15]} Rh1 {[%emt 0:00:23]} 67. Rxb2 {[%emt 0:00:20]} Rxh3+ {[%emt 0:00:07]} 68. Kb4 {[%emt 0:00:04]} Re3 {[%emt 0:00:15]} 69. Ka5 {[%emt 0:00:40]} h4 {[%emt 0:00:25]} 70. Rb7+ {[%emt 0:00:05]} Kc8 {[%emt 0:00:03]} 71. Rh7 {[%emt 0:00:07]} h3 {[%emt 0:00:07]} 72. Kb6 {[%emt 0:00:19]} 1-0

[Event "Polish Youth 1st League 2022"]
[Site "Lublin"]
[Date "2022.06.26"]
[Round "2.8"]
[White "Kubik, Rafal"]
[Black "Jendrowiak, Maciej"]
[Result "1/2-1/2"]
[ECO "B10"]
[WhiteElo "1827"]
[BlackElo "1713"]
[Annotator "NA RC"]
[PlyCount "91"]
[EventDate "2022.06.24"]
[EventType "team-tourn"]
[EventCountry "POL"]
[SourceTitle "playchess.com"]
[Source "ChessBase"]
[SourceQuality "1"]
[TimeControl "40/5400+30:1800+30"]

1. e4 c6 2. c4 d5 3. e5 g6 4. f4 Bg7 5. Nf3 Bg4 6. cxd5 cxd5 7. d4 Nc6 8. Bb5 Qb6 9. Bxc6+ bxc6 10. O-O e6 11. h3 Bxf3 12. Rxf3 Ne7 13. Nc3 O-O 14. Na4 Qb4 15. g4 Rfd8 16. Nc5 Rdc8 17. Rb3 Qa5 18. Bd2 Qd8 19. Qe1 Rcb8 20. Ba5 Qc8 21. Rc1 Rxb3 22. Nxb3 Qb7 23. Qc3 Bh6 24. Nc5 Qc8 25. Nd3 Qa6 26. Bb4 Bf8 27. Bxe7 Bxe7 28. a3 Rc8 29. Rc2 Kf8 30. Kf2 Ke8 31. b4 Qa4 32. Nb2 Qb5 33. Qd3 Qxd3 34. Nxd3 Kd7 35. Ke3 Ra8 36. Nc5+ Bxc5 37. Rxc5 a6 38. Kd3 Kc7 39. Rc1 Kb6 40. Kc3 Rh8 41. h4 h5 42. g5 Ra8 43. Kb3 Kb7 44. Rc5 Kb6 45. a4 Rb8 46. Ka3 1/2-1/2

[Event "Polish Youth 1st League 2022"]
[Site "Lublin"]
[Date "2022.06.26"]
[Round "2.9"]
[White "Wierzbicki, Dawid"]
[Black "Karwot, Marek"]
[Result "1/2-1/2"]
[ECO "A10"]
[WhiteElo "1556"]
[BlackElo "1454"]
[Annotator "NA RC"]
[PlyCount "76"]
[EventDate "2022.06.24"]
[EventType "team-tourn"]
[EventCountry "POL"]
[SourceTitle "playchess.com"]
[Source "ChessBase"]
[SourceQuality "1"]
[TimeControl "40/5400+30:1800+30"]

1. c4 {[%emt 0:00:10]} b6 {[%emt 0:00:01]} 2. e3 {[%emt 0:00:25]} Bb7 {[%emt 0:00:47]} 3. Nf3 {[%emt 0:00:32]} e6 {[%emt 0:01:13]} 4. b3 {[%emt 0:00:39]} Nf6 {[%emt 0:00:46]} 5. Bb2 {[%emt 0:00:09]} d5 {[%emt 0:01:01]} 6. cxd5 {[%emt 0:00:28]} exd5 {[%emt 0:03:41]} 7. a3 {[%emt 0:01:28]} Bd6 {[%emt 0:03:13]} 8. d3 {[%emt 0:00:30]} O-O {[%emt 0:01:13]} 9. Be2 {[%emt 0:00:39]} c5 {[%emt 0:02:27]} 10. Nbd2 {[%emt 0:00:43]} Nbd7 {[%emt 0:01:07]} 11. O-O {[%emt 0:00:28]} Re8 {[%emt 0:01:20]} 12. Rc1 {[%emt 0:02:01]} Qe7 {[%emt 0:02:28]} 13. Re1 {[%emt 0:03:18]} Rac8 {[%emt 0:03:05]} 14. Rc2 {[%emt 0:02:57]} Ne5 {[%emt 0:05:24]} 15. Nxe5 {[%emt 0:02:50]} Bxe5 {[%emt 0:00:15]} 16. Bxe5 {[%emt 0:00:03]} Qxe5 {[%emt 0:00:17]} 17. Nf3 {[%emt 0:04:43]} Qd6 {[%emt 0:02:48]} 18. Qa1 {[%emt 0:01:30]} a6 {[%emt 0:07:55]} 19. d4 {[%emt 0:07:29]} Red8 {[%emt 0:05:18]} 20. Rec1 {[%emt 0:02:29]} Ne4 {[%emt 0:03:16]} 21. Ne5 {[%emt 0:02:32]} f6 {[%emt 0:06:19]} 22. Nd3 {[%emt 0:00:53]} cxd4 {[%emt 0:01:37]} 23. Rxc8 {[%emt 0:01:21]} Rxc8 {[%emt 0:00:49]} 24. Rxc8+ {[%emt 0:00:14]} Bxc8 {[%emt 0:00:06]} 25. Qxd4 {[%emt 0:01:15]} Nc5 {[%emt 0:01:34]} 26. Nb4 {[%emt 0:08:55]} Bb7 {[%emt 0:08:00]} 27. Qd1 {[%emt 0:04:17]} a5 {[%emt 0:02:38]} 28. Na2 {[%emt 0:00:31]} Ne6 {[%emt 0:03:37]} 29. b4 {[%emt 0:02:25]} d4 {[%emt 0:04:43]} 30. exd4 {[%emt 0:08:01]} Qxd4 {[%emt 0:07:16]} 31. Qxd4 {[%emt 0:04:34]} Nxd4 {[%emt 0:00:12]} 32. Bc4+ {[%emt 0:00:30]} Kf8 {[%emt 0:00:44]} 33. bxa5 {[%emt 0:00:20]} bxa5 {[%emt 0:01:09]} 34. f3 {[%emt 0:05:54]} Ke7 {[%emt 0:02:51]} 35. Bd3 {[%emt 0:00:42]} h6 {[%emt 0:00:47]} 36. Kf2 {[%emt 0:00:47]} Kd6 {[%emt 0:01:47]} 37. Nc3 {[%emt 0:00:36]} Bc6 {[%emt 0:02:09]} 38. Ke3 {[%emt 0:01:14]} Ke5 1/2-1/2

[Event "Polish Youth 1st League 2022"]
[Site "Lublin"]
[Date "2022.06.26"]
[Round "2.10"]
[White "Niesporek, Franciszek"]
[Black "Oles, Mateusz"]
[Result "1-0"]
[ECO "A04"]
[WhiteElo "1332"]
[BlackElo "1201"]
[Annotator "NA RC"]
[PlyCount "77"]
[EventDate "2022.06.24"]
[EventType "team-tourn"]
[EventCountry "POL"]
[SourceTitle "playchess.com"]
[Source "ChessBase"]
[SourceQuality "1"]
[TimeControl "40/5400+30:1800+30"]

1. Nf3 {[%emt 0:00:03]} c5 {[%emt 0:01:30]} 2. b3 {[%emt 0:00:09]} Nc6 {[%emt 0:01:27]} 3. Bb2 {[%emt 0:00:08]} d5 {[%emt 0:01:28]} 4. e3 {[%emt 0:00:48]} Bf5 {[%emt 0:01:19]} 5. Bb5 {[%emt 0:01:23]} e6 {[%emt 0:05:01]} 6. O-O {[%emt 0:04:23]} Nf6 {[%emt 0:04:44]} 7. Ne5 {[%emt 0:01:32]} Rc8 {[%emt 0:05:50]} 8. f4 {[%emt 0:02:23]} h5 {[%emt 0:06:22]} 9. d3 {[%emt 0:04:09]} Bd6 {[%emt 0:04:12]} 10. Nd2 {[%emt 0:04:35]} O-O {[%emt 0:04:36]} 11. Bxc6 {[%emt 0:02:04]} bxc6 {[%emt 0:00:12]} 12. Qe2 {[%emt 0:02:33]} Bg6 {[%emt 0:30:12]} 13. Ndf3 {[%emt 0:13:10]} Nd7 {[%emt 0:02:31]} 14. Nxg6 {[%emt 0:09:43]} fxg6 {[%emt 0:00:13]} 15. Ne5 {[%emt 0:00:17]} Bxe5 {[%emt 0:01:14]} 16. fxe5 {[%emt 0:01:40]} Qg5 {[%emt 0:01:41]} 17. d4 {[%emt 0:02:22]} Rxf1+ {[%emt 0:10:03]} 18. Rxf1 {[%emt 0:00:09]} Rf8 {[%emt 0:02:28]} 19. Rxf8+ {[%emt 0:04:23]} Kxf8 {[%emt 0:00:40]} 20. Ba3 {[%emt 0:03:38]} Kg8 {[%emt 0:02:48]} 21. Qd3 {[%emt 0:12:27]} cxd4 {[%emt 0:07:31]} 22. exd4 {[%emt 0:00:10]} Qh4 {[%emt 0:01:00]} 23. g3 {[%emt 0:06:04]} Qg4 {[%emt 0:00:18]} 24. Kg2 {[%emt 0:09:51]} Kf7 {[%emt 0:02:32]} 25. Qf3+ {[%emt 0:00:32]} Qf5 {[%emt 0:00:29]} 26. h4 {[%emt 0:01:27]} Qxf3+ {[%emt 0:02:33]} 27. Kxf3 {[%emt 0:00:11]} a6 {[%emt 0:00:33]} 28. Kf4 {[%emt 0:01:22]} Nb6 {[%emt 0:00:28]} 29. Bd6 {[%emt 0:00:38]} Nc8 {[%emt 0:00:30]} 30. Bc5 {[%emt 0:00:08]} Ke8 {[%emt 0:00:33]} 31. Kg5 {[%emt 0:03:07]} Kf7 {[%emt 0:00:30]} 32. a4 {[%emt 0:00:12]} Kg8 {[%emt 0:00:31]} 33. Kxg6 {[%emt 0:00:13]} Kh8 {[%emt 0:00:08]} 34. Kxh5 {[%emt 0:00:20]} Kh7 {[%emt 0:00:47]} 35. Kg5 {[%emt 0:00:21]} a5 {[%emt 0:00:33]} 36. g4 {[%emt 0:00:50]} g6 {[%emt 0:00:32]} 37. Kf6 {[%emt 0:00:18]} Kg8 {[%emt 0:00:19]} 38. Kxg6 {[%emt 0:00:11]} Kh8 {[%emt 0:00:05]} 39. h5 {[%emt 0:00:07]} 1-0

[Event "Polish Youth 1st League 2022"]
[Site "Lublin"]
[Date "2022.06.26"]
[Round "2.11"]
[White "Kroliczek, Gabriela"]
[Black "Bugaj, Hanna"]
[Result "0-1"]
[ECO "B06"]
[WhiteElo "1934"]
[BlackElo "1779"]
[Annotator "NA RC"]
[PlyCount "58"]
[EventDate "2022.06.24"]
[EventType "team-tourn"]
[EventCountry "POL"]
[SourceTitle "playchess.com"]
[Source "ChessBase"]
[SourceQuality "1"]
[TimeControl "40/5400+30:1800+30"]

1. e4 {[%emt 0:00:03]} g6 {[%emt 0:00:09]} 2. d4 {[%emt 0:00:23]} Bg7 {[%emt 0:00:09]} 3. c3 {[%emt 0:01:07]} d5 {[%emt 0:02:24]} 4. e5 {[%emt 0:01:20]} c5 {[%emt 0:02:33]} 5. f4 {[%emt 0:06:54]} cxd4 {[%emt 0:03:49]} 6. cxd4 {[%emt 0:01:07]} Nc6 {[%emt 0:00:40]} 7. Nc3 {[%emt 0:04:09]} Nh6 {[%emt 0:03:21]} 8. Be2 {[%emt 0:00:43]} O-O {[%emt 0:08:31]} 9. Bf3 {[%emt 0:07:47]} e6 {[%emt 0:03:23]} 10. Nge2 {[%emt 0:01:26]} Qb6 {[%emt 0:09:24]} 11. g4 {[%emt 0:08:57]} Kh8 {[%emt 0:19:12]} 12. h4 {[%emt 0:16:34]} Bd7 {[%emt 0:08:32]} 13. Rb1 {[%emt 0:16:49]} Rac8 {[%emt 0:02:16]} 14. h5 {[%emt 0:03:18]} Kg8 {[%emt 0:14:21]} 15. Be3 {[%emt 0:09:54]} Be8 {[%emt 0:06:07]} 16. Ng3 {[%emt 0:12:35]} Na5 {[%emt 0:04:49]} 17. hxg6 {[%emt 0:03:39]} fxg6 {[%emt 0:03:16]} 18. f5 {[%emt 0:00:09]} Bxe5 {[%emt 0:02:05]} 19. Nf1 {[%emt 0:00:42]} Nc4 {[%emt 0:01:06]} 20. dxe5 {[%emt 0:01:55]} Nxe3 {[%emt 0:00:07]} 21. Qd2 {[%emt 0:00:51]} Nhxg4 {[%emt 0:00:41]} 22. Bxg4 {[%emt 0:00:36]} Nxg4 {[%emt 0:00:09]} 23. f6 {[%emt 0:00:16]} Rc4 {[%emt 0:01:52]} 24. Rh3 {[%emt 0:00:45]} Bb5 {[%emt 0:02:17]} 25. Qg5 {[%emt 0:00:27]} Qf2+ {[%emt 0:00:23]} 26. Kd1 {[%emt 0:00:05]} Qxf1+ {[%emt 0:00:16]} 27. Kc2 {[%emt 0:00:03]} Qxh3 {[%emt 0:00:12]} 28. f7+ {[%emt 0:00:53]} Rxf7 {[%emt 0:00:15]} 29. Qd8+ {[%emt 0:00:06]} Kg7 {[%emt 0:00:06]} 0-1

[Event "Polish Youth 1st League 2022"]
[Site "Lublin"]
[Date "2022.06.26"]
[Round "2.12"]
[White "Sprzeczka, Emilia"]
[Black "Seemann, Pola"]
[Result "1-0"]
[ECO "C45"]
[WhiteElo "1692"]
[BlackElo "1777"]
[Annotator "NA RC"]
[PlyCount "135"]
[EventDate "2022.06.24"]
[EventType "team-tourn"]
[EventCountry "POL"]
[SourceTitle "playchess.com"]
[Source "ChessBase"]
[SourceQuality "1"]
[TimeControl "40/5400+30:1800+30"]

1. e4 {[%emt 0:00:03]} e5 {[%emt 0:00:06]} 2. Nf3 {[%emt 0:00:14]} Nc6 {[%emt 0:00:06]} 3. d4 {[%emt 0:00:15]} exd4 {[%emt 0:00:06]} 4. Nxd4 {[%emt 0:00:05]} Bc5 {[%emt 0:00:06]} 5. Nxc6 {[%emt 0:00:15]} bxc6 {[%emt 0:00:07]} 6. Bd3 {[%emt 0:00:40]} Qh4 {[%emt 0:00:11]} 7. Qf3 {[%emt 0:07:41]} Nf6 {[%emt 0:01:44]} 8. Bf4 {[%emt 0:12:04]} d6 {[%emt 0:07:27]} 9. Nd2 {[%emt 0:10:16]} Bg4 {[%emt 0:02:15]} 10. Qg3 {[%emt 0:01:26]} Qxg3 {[%emt 0:00:14]} 11. Bxg3 {[%emt 0:00:42]} Nh5 {[%emt 0:03:08]} 12. Nb3 {[%emt 0:05:58]} Nxg3 {[%emt 0:04:23]} 13. hxg3 {[%emt 0:00:13]} Bb6 {[%emt 0:00:26]} 14. Ba6 {[%emt 0:09:44]} Bc8 {[%emt 0:05:46]} 15. Bxc8 {[%emt 0:02:46]} Rxc8 {[%emt 0:00:09]} 16. c4 {[%emt 0:05:20]} c5 {[%emt 0:05:02]} 17. O-O-O {[%emt 0:05:35]} f6 {[%emt 0:05:36]} 18. f4 {[%emt 0:03:43]} O-O {[%emt 0:04:35]} 19. Rhe1 {[%emt 0:03:09]} Rcd8 {[%emt 0:04:08]} 20. Rd3 {[%emt 0:05:29]} Rfe8 {[%emt 0:05:40]} 21. Rde3 {[%emt 0:03:56]} c6 {[%emt 0:03:44]} 22. Nd2 {[%emt 0:06:27]} Ba5 {[%emt 0:02:00]} 23. Ra3 {[%emt 0:01:47]} Bxd2+ {[%emt 0:01:41]} 24. Kxd2 {[%emt 0:00:06]} Rb8 {[%emt 0:02:29]} 25. Kc2 {[%emt 0:03:06]} Rb7 {[%emt 0:04:47]} 26. Rd3 {[%emt 0:01:04]} Rd7 {[%emt 0:00:42]} 27. Ree3 {[%emt 0:01:57]} Re6 {[%emt 0:03:12]} 28. e5 {[%emt 0:01:23]} fxe5 {[%emt 0:00:22]} 29. Rxe5 {[%emt 0:01:36]} Rxe5 {[%emt 0:00:49]} 30. fxe5 {[%emt 0:00:07]} d5 {[%emt 0:00:40]} 31. e6 {[%emt 0:03:25]} Rd6 {[%emt 0:00:21]} 32. cxd5 {[%emt 0:00:38]} cxd5 {[%emt 0:00:08]} 33. e7 {[%emt 0:00:18]} Kf7 {[%emt 0:00:50]} 34. Re3 {[%emt 0:00:26]} Ke8 {[%emt 0:00:07]} 35. Kd3 {[%emt 0:01:39]} d4 {[%emt 0:03:01]} 36. Re5 {[%emt 0:01:06]} c4+ {[%emt 0:00:34]} 37. Kxc4 {[%emt 0:00:41]} d3 {[%emt 0:00:08]} 38. Re1 {[%emt 0:00:10]} d2 {[%emt 0:00:19]} 39. Rd1 {[%emt 0:00:06]} Kxe7 {[%emt 0:00:06]} 40. Kc3 {[%emt 0:00:00]} Rg6 {[%emt 0:00:00]} 41. Rxd2 {[%emt 0:01:19]} Rxg3+ {[%emt 0:00:27]} 42. Kb4 {[%emt 0:02:41]} Re3 {[%emt 0:02:29]} 43. Kb5 {[%emt 0:02:35]} Re6 {[%emt 0:02:55]} 44. b4 {[%emt 0:03:44]} h5 {[%emt 0:04:19]} 45. a4 {[%emt 0:02:41]} g5 {[%emt 0:00:44]} 46. Kc5 {[%emt 0:02:54]} h4 {[%emt 0:00:49]} 47. b5 {[%emt 0:03:08]} g4 {[%emt 0:00:19]} 48. a5 {[%emt 0:01:30]} h3 {[%emt 0:00:07]} 49. gxh3 {[%emt 0:00:21]} gxh3 {[%emt 0:00:07]} 50. b6 {[%emt 0:01:13]} axb6+ {[%emt 0:02:05]} 51. axb6 {[%emt 0:00:06]} h2 {[%emt 0:00:15]} 52. Rd1 {[%emt 0:08:34]} h1=Q {[%emt 0:03:52]} 53. Rxh1 {[%emt 0:00:07]} Kd7 {[%emt 0:00:07]} 54. Kb5 {[%emt 0:00:29]} Re2 {[%emt 0:04:31]} 55. Rc1 {[%emt 0:00:56]} Rb2+ {[%emt 0:01:07]} 56. Ka6 {[%emt 0:00:07]} Ra2+ {[%emt 0:00:12]} 57. Kb7 {[%emt 0:00:07]} Kd8 {[%emt 0:00:15]} 58. Kb8 {[%emt 0:00:09]} Ra3 {[%emt 0:00:29]} 59. Rd1+ {[%emt 0:01:22]} Ke7 {[%emt 0:00:20]} 60. Rd4 {[%emt 0:00:42]} Rb3 {[%emt 0:02:09]} 61. b7 {[%emt 0:00:08]} Rc3 {[%emt 0:00:18]} 62. Ka7 {[%emt 0:00:29]} Ra3+ {[%emt 0:00:09]} 63. Kb6 {[%emt 0:00:09]} Rb3+ {[%emt 0:00:06]} 64. Kc6 {[%emt 0:00:26]} Ke6 {[%emt 0:01:13]} 65. Re4+ {[%emt 0:00:08]} Kf5 {[%emt 0:00:20]} 66. Rc4 {[%emt 0:00:17]} Ke6 {[%emt 0:00:40]} 67. Kc7 {[%emt 0:00:09]} Kd5 {[%emt 0:00:16]} 68. Rc1 {[%emt 0:00:07]} 1-0